fUST/lending_fUST_20250704
["ID","MTS","AMOUNT","RATE_DAILY","PERIOD"]
[369448405,1751579443601,-460.0,0.00016712,2]
[369448407,1751579443611,-325.45,0.00016712,2]
[369448409,1751579443620,-460.0,0.00016712,2]
[369448411,1751579443629,-460.0,0.00016712,2]
[369448413,1751579443638,-545.76506606,0.00016712,2]
[369448416,1751579443650,-669.47493394,0.00016712,2]
[369448418,1751579443660,-460.0,0.00016712,2]
[369448420,1751579443669,-380.3565607,0.00016712,2]
[369448422,1751579443680,-1469.0934393,0.00016712,2]
[369448424,1751579443689,-3593.98,0.00016712,2]
[369448426,1751579443698,-1970.85,0.00016712,2]
[369448428,1751579443708,-460.0,0.00016712,2]
[369448430,1751579443717,-460.0,0.00016712,2]
[369448432,1751579443727,-645.07,0.00016712,2]
[369448434,1751579443736,-460.0,0.00016712,2]
[369448436,1751579443745,-460.0,0.00016712,2]
[369448438,1751579443759,-800.51,0.00016712,2]
[369448440,1751579443768,-460.0,0.00016712,2]
[369448442,1751579443777,-460.0,0.00016712,2]
[369448444,1751579443786,-460.0,0.00016712,2]
[369448446,1751579443796,-460.0,0.00016712,2]
[369448448,1751579443805,-460.0,0.00016712,2]
[369448450,1751579443814,-460.0,0.00016712,2]
[369448452,1751579443824,-460.0,0.00016712,2]
[369448454,1751579443834,-460.0,0.00016712,2]
[369448456,1751579443843,-460.0,0.00016712,2]
[369448458,1751579443852,-460.0,0.00016712,2]
[369448460,1751579443861,-460.0,0.00016712,2]
[369448462,1751579443870,-483.32,0.00016712,2]
[369448464,1751579443879,-1377.85,0.00016712,2]
[369448465,1751579443888,-460.0,0.00016712,2]
[369448466,1751579443898,-482.45,0.00016712,2]
[369448467,1751579443907,-460.0,0.00016712,2]
[369448468,1751579443916,-1802.93,0.00016712,2]
[369448469,1751579443926,-460.0,0.00016712,2]
[369448470,1751579443934,-460.0,0.00016712,2]
[369448471,1751579443943,-1189.29,0.00016712,2]
[369448472,1751579443953,-1504.93,0.00016712,2]
[369448473,1751579443962,-643.35,0.00016712,2]
[369448474,1751579443971,-460.0,0.00016712,2]
[369448475,1751579443980,-460.0,0.00016712,2]
[369448476,1751579443990,-460.0,0.00016712,2]
[369448477,1751579443999,-1538.77,0.00016712,2]
[369448478,1751579444008,-460.0,0.00016712,2]
[369448479,1751579444017,-460.0,0.00016712,2]
[369448480,1751579444026,-460.0,0.00016712,2]
[369448481,1751579444036,-460.0,0.00016712,2]
[369448482,1751579444045,-207.33486677,0.00016719,2]
[369448483,1751579444054,-500.0,0.00016719,2]
[369448484,1751579444063,-500.0,0.00016719,2]
[369448485,1751579444073,-500.0,0.00016719,2]
[369448486,1751579444082,-500.0,0.00016719,2]
[369448487,1751579444092,-500.0,0.00016749,2]
[369448489,1751579444103,-500.0,0.00016749,2]
[369448490,1751579444112,-500.0,0.00016764,2]
[369448491,1751579444122,-500.0,0.00016764,2]
[369448493,1751579444131,-500.0,0.00016764,2]
[369448495,1751579444141,-636.36387393,0.00016764,2]
[369448497,1751579444150,-500.0,0.00016764,2]
[369448499,1751579444160,-500.0,0.00016764,2]
[369448501,1751579444169,-500.0,0.00016764,2]
[369448503,1751579444179,-1221.62942243,0.00016868,2]
[369448505,1751579444188,-3677.0296466,0.000169,2]
[369448507,1751579444198,-151.0,0.00016986,2]
[369448509,1751579444207,-460.0,0.00016986,2]
[369448511,1751579444216,-460.0,0.00016986,2]
[369448513,1751579444225,-460.0,0.00016986,2]
[369448515,1751579444234,-460.0,0.00016986,2]
[369448517,1751579444243,-460.0,0.00016986,2]
[369448519,1751579444253,-151.0,0.00016986,2]
[369448521,1751579444262,-460.0,0.00016986,2]
[369448523,1751579444271,-460.0,0.00016986,2]
[369448525,1751579444280,-460.0,0.00016986,2]
[369448527,1751579444289,-460.0,0.00016986,2]
[369448529,1751579444299,-460.0,0.00016986,2]
[369448531,1751579444308,-460.0,0.00016986,2]
[369448533,1751579444317,-460.0,0.00016986,2]
[369448535,1751579444327,-460.0,0.00016986,2]
[369448537,1751579444336,-460.0,0.00016986,2]
[369448539,1751579444346,-460.0,0.00016986,2]
[369448541,1751579444355,-460.0,0.00016986,2]
[369448543,1751579444364,-460.0,0.00016986,2]
[369448545,1751579444374,-460.0,0.00016986,2]
[369448547,1751579444383,-460.0,0.00016986,2]
[369448549,1751579444393,-606.14,0.00016986,2]
[369448551,1751579444402,-314.89,0.00016986,2]
[369448553,1751579444411,-460.0,0.00016986,2]
[369448555,1751579444421,-151.0,0.00016986,2]
[369448557,1751579444430,-460.0,0.00016986,2]
[369448559,1751579444439,-151.0,0.00016986,2]
[369448561,1751579444448,-151.0,0.00016986,2]
[369448563,1751579444457,-151.0,0.00016986,2]
[369448565,1751579444467,-151.0,0.00016986,2]
[369448567,1751579444476,-151.0,0.00016986,2]
[369448569,1751579444485,-460.0,0.00016986,2]
[369448571,1751579444495,-460.0,0.00016986,2]
[369448573,1751579444504,-460.0,0.00016986,2]
[369448575,1751579444513,-460.0,0.00016986,2]
[369448577,1751579444522,-151.0,0.00016986,2]
[369448579,1751579444532,-151.0,0.00016986,2]
[369448581,1751579444541,-460.0,0.00016986,2]
[369448583,1751579444551,-460.0,0.00016986,2]
[369448585,1751579444560,-4010.31,0.00016986,2]
[369448587,1751579444569,-151.0,0.00016986,2]
[369448589,1751579444578,-151.0,0.00016986,2]
[369448591,1751579444588,-460.0,0.00016986,2]
[369448593,1751579444598,-151.0,0.00016986,2]
[369448595,1751579444607,-460.0,0.00016986,2]
[369448597,1751579444616,-460.0,0.00016986,2]
[369448599,1751579444625,-460.0,0.00016986,2]
[369448601,1751579444635,-2483.81,0.00016986,2]
[369448603,1751579444644,-374.46703859,0.00016986,2]
[369448605,1751579444653,-460.0,0.00016986,2]
[369448607,1751579444662,-460.0,0.00016986,2]
[369448609,1751579444671,-391.16,0.00016986,2]
[369448611,1751579444680,-460.0,0.00016986,2]
[369448613,1751579444690,-1928.88,0.00016986,2]
[369448615,1751579444700,-460.0,0.00016986,2]
[369448617,1751579444716,-151.0,0.00016986,2]
[369448619,1751579444726,-460.0,0.00016986,2]
[369448621,1751579444735,-1202.11,0.00016986,2]
[369448622,1751579444744,-460.0,0.00016986,2]
[369448625,1751579444757,-460.0,0.00016986,2]
[369448627,1751579444767,-460.0,0.00016986,2]
[369448629,1751579444776,-460.0,0.00016986,2]
[369448631,1751579444786,-460.0,0.00016986,2]
[369448633,1751579444795,-572.9,0.00016986,2]
[369448635,1751579444805,-460.0,0.00016986,2]
[369448637,1751579444814,-460.0,0.00016986,2]
[369448639,1751579444823,-151.0,0.00016986,2]
[369448640,1751579444834,-460.0,0.00016986,2]
[369448643,1751579444844,-460.0,0.00016986,2]
[369448645,1751579444854,-460.0,0.00016986,2]
[369448647,1751579444863,-460.0,0.00016986,2]
[369448648,1751579444872,-2277.09,0.00016986,2]
[369448650,1751579444882,-460.0,0.00016986,2]
[369448652,1751579444894,-460.0,0.00016986,2]
[369448654,1751579444909,-1786.38,0.00016986,2]
[369448656,1751579444919,-529.07908283,0.00016986,2]
[369448658,1751579444928,-460.0,0.00016986,2]
[369448660,1751579444938,-436.79021353,0.00016986,2]
[369448662,1751579444947,-892.83,0.00016986,2]
[369448665,1751579444960,-151.0,0.00016986,2]
[369448667,1751579444970,-460.0,0.00016986,2]
[369448669,1751579444979,-460.0,0.00016986,2]
[369448671,1751579444989,-536.3,0.00016986,2]
[369448673,1751579444998,-151.0,0.00016986,2]
[369448675,1751579445007,-700.35,0.00016986,2]
[369448677,1751579445016,-460.0,0.00016986,2]
[369448679,1751579445025,-460.0,0.00016986,2]
[369448681,1751579445034,-507.42,0.00016986,2]
[369448683,1751579445044,-151.0,0.00016986,2]
[369448685,1751579445053,-460.0,0.00016986,2]
[369448687,1751579445063,-207.16811129,0.00016986,2]
[369448688,1751579445072,-851.41,0.00016986,2]
[369448690,1751579445082,-2058.93,0.00016986,2]
[369448692,1751579445092,-460.0,0.00016986,2]
[369448695,1751579445101,-460.0,0.00016986,2]
[369448696,1751579445110,-460.0,0.00016986,2]
[369448698,1751579445120,-1215.24,0.00016986,2]
[369448701,1751579445130,-460.0,0.00016986,2]
[369448703,1751579445139,-1849.45,0.00016986,2]
[369448705,1751579445149,-3593.98,0.00016986,2]
[369448707,1751579445158,-1970.85,0.00016986,2]
[369448709,1751579445168,-460.0,0.00016986,2]
[369448710,1751579445177,-319.9749224,0.00016986,2]
[369448713,1751579445187,-645.07,0.00016986,2]
[369448715,1751579445196,-460.0,0.00016986,2]
[369448717,1751579445205,-460.0,0.00016986,2]
[369448718,1751579445214,-800.51,0.00016986,2]
[369448721,1751579445224,-460.0,0.00016986,2]
[369448722,1751579445233,-460.0,0.00016986,2]
[369448739,1751579445375,-460.0,0.00016986,2]
[369448741,1751579445384,-460.0,0.00016986,2]
[369448743,1751579445394,-460.0,0.00016986,2]
[369448745,1751579445403,-460.0,0.00016986,2]
[369448747,1751579445412,-460.0,0.00016986,2]
[369448749,1751579445425,-460.0,0.00016986,2]
[369448751,1751579445434,-460.0,0.00016986,2]
[369448753,1751579445445,-483.32,0.00016986,2]
[369448755,1751579445464,-1377.85,0.00016986,2]
[369448757,1751579445473,-460.0,0.00016986,2]
[369448759,1751579445482,-482.45,0.00016986,2]
[369448761,1751579445492,-460.0,0.00016986,2]
[369448763,1751579445501,-1802.93,0.00016986,2]
[369448765,1751579445510,-460.0,0.00016986,2]
[369448767,1751579445519,-460.0,0.00016986,2]
[369448770,1751579445528,-1189.29,0.00016986,2]
[369448772,1751579445537,-1504.93,0.00016986,2]
[369448774,1751579445547,-643.35,0.00016986,2]
[369448776,1751579445556,-460.0,0.00016986,2]
[369448778,1751579445565,-460.0,0.00016986,2]
[369448780,1751579445576,-460.0,0.00016986,2]
[369448782,1751579445585,-1538.77,0.00016986,2]
[369448784,1751579445594,-151.0,0.00016986,2]
[369448786,1751579445603,-288.41329943,0.00016986,2]
[369448788,1751579445612,-460.0,0.00016986,2]
[369448790,1751579445622,-460.0,0.00016986,2]
[369448792,1751579445632,-460.0,0.00016986,2]
[369448794,1751579445641,-151.0,0.00017087,2]
[369448796,1751579445650,-151.0,0.000171,2]
[369448797,1751579445658,-248.29018701,0.0001712,2]
[369448800,1751579445668,-420.0,0.00017143,2]
[369448801,1751579445677,-420.0,0.00017143,2]
[369448804,1751579445687,-420.0,0.00017143,2]
[369448806,1751579445697,-1680.0,0.00017144,2]
[369448808,1751579445706,-608.0,0.0001717,2]
[369448810,1751579445715,-67.67690711,0.00017176,2]
[369448812,1751579445730,-3609.35273942,0.00017176,2]
[369448814,1751579445739,-1680.0,0.00017229,2]
[369448816,1751579445748,-151.0,0.00017248,2]
[369448818,1751579445760,-151.0,0.00017248,2]
[369448820,1751579445769,-199.376625,0.00017248,2]
[369448822,1751579445778,-199.376625,0.00017248,2]
[369448824,1751579445787,-151.000001,0.00017248,2]
[369448826,1751579445796,-460.0,0.0001726,2]
[369448828,1751579445806,-460.0,0.0001726,2]
[369448830,1751579445815,-151.0,0.0001726,2]
[369448832,1751579445826,-151.0,0.0001726,2]
[369448834,1751579445836,-151.0,0.0001726,2]
[369448836,1751579445845,-151.0,0.0001726,2]
[369448838,1751579445854,-151.0,0.0001726,2]
[369448840,1751579445863,-460.0,0.0001726,2]
[369448842,1751579445873,-460.0,0.0001726,2]
[369448844,1751579445882,-210.810975,0.0001726,2]
[369448846,1751579445891,-210.810975,0.0001726,2]
[369448848,1751579445900,-151.0,0.0001726,2]
[369448849,1751579445910,-460.0,0.0001726,2]
[369448851,1751579445919,-151.0,0.0001726,2]
[369448853,1751579445929,-460.0,0.0001726,2]
[369448855,1751579445938,-460.0,0.0001726,2]
[369448857,1751579445947,-460.0,0.0001726,2]
[369448859,1751579445956,-460.0,0.0001726,2]
[369448861,1751579445965,-232.36,0.0001726,2]
[369448863,1751579445975,-151.0,0.0001726,2]
[369448865,1751579445983,-151.0,0.0001726,2]
[369448867,1751579445993,-460.0,0.0001726,2]
[369448869,1751579446002,-152.508771,0.0001726,2]
[369448871,1751579446011,-460.0,0.0001726,2]
[369448873,1751579446020,-460.0,0.0001726,2]
[369448875,1751579446030,-460.0,0.0001726,2]
[369448877,1751579446039,-460.0,0.0001726,2]
[369448879,1751579446048,-460.0,0.0001726,2]
[369448881,1751579446057,-460.0,0.0001726,2]
[369448883,1751579446066,-151.0,0.0001726,2]
[369448885,1751579446075,-151.0,0.0001726,2]
[369448887,1751579446085,-497.34,0.0001726,2]
[369448889,1751579446094,-161.305236,0.0001726,2]
[369448891,1751579446103,-161.305236,0.0001726,2]
[369448893,1751579446112,-460.0,0.0001726,2]
[369448895,1751579446122,-151.0,0.0001726,2]
[369448897,1751579446131,-578.88,0.0001726,2]
[369448899,1751579446140,-309.42,0.0001726,2]
[369448901,1751579446149,-460.0,0.0001726,2]
[369448903,1751579446158,-460.0,0.0001726,2]
[369448905,1751579446167,-460.0,0.0001726,2]
[369448907,1751579446177,-460.0,0.0001726,2]
[369448909,1751579446186,-2118.50468924,0.0001726,2]
[369448911,1751579446198,-1302.3054421,0.0001726,2]
[369448929,1751579446354,-151.0,0.00016986,2]
[369448931,1751579446364,-589.49986866,0.0001726,2]
[369448933,1751579446373,-454.96013134,0.0001726,2]
[369448935,1751579446385,-5.03986866,0.0001726,2]
[369448937,1751579446394,-460.0,0.0001726,2]
[369448939,1751579446403,-460.0,0.0001726,2]
[369448941,1751579446412,-460.0,0.0001726,2]
[369448943,1751579446421,-75.15807954,0.0001726,2]
[369448945,1751579446432,-257.61728399,0.0001726,2]
[369448947,1751579446444,-127.22463647,0.0001726,2]
[369448949,1751579446455,-460.0,0.0001726,2]
[369448950,1751579446464,-1928.88,0.0001726,2]
[369448951,1751579446473,-579.17579367,0.0001726,2]
[369448952,1751579446482,-460.0,0.0001726,2]
[369448953,1751579446492,-1202.11,0.0001726,2]
[369448954,1751579446501,-460.0,0.0001726,2]
[369448955,1751579446510,-460.0,0.0001726,2]
[369448956,1751579446519,-460.0,0.0001726,2]
[369448957,1751579446528,-460.0,0.0001726,2]
[369448958,1751579446537,-572.9,0.0001726,2]
[369448960,1751579446546,-460.0,0.0001726,2]
[369448962,1751579446555,-151.0,0.0001726,2]
[369448964,1751579446565,-460.0,0.0001726,2]
[369448966,1751579446574,-460.0,0.0001726,2]
[369448968,1751579446583,-460.0,0.0001726,2]
[369448970,1751579446592,-460.0,0.0001726,2]
[369448972,1751579446601,-2277.09,0.0001726,2]
[369448974,1751579446610,-460.0,0.0001726,2]
[369448976,1751579446619,-1786.38,0.0001726,2]
[369448978,1751579446628,-460.0,0.0001726,2]
[369448980,1751579446637,-892.83,0.0001726,2]
[369448982,1751579446647,-151.0,0.0001726,2]
[369448984,1751579446656,-460.0,0.0001726,2]
[369448986,1751579446666,-460.0,0.0001726,2]
[369448988,1751579446675,-151.0,0.0001726,2]
[369448990,1751579446684,-700.35,0.0001726,2]
[369448992,1751579446693,-460.0,0.0001726,2]
[369448994,1751579446703,-460.0,0.0001726,2]
[369448996,1751579446712,-507.42,0.0001726,2]
[369448998,1751579446721,-151.0,0.0001726,2]
[369449000,1751579446730,-460.0,0.0001726,2]
[369449002,1751579446739,-851.41,0.0001726,2]
[369449004,1751579446749,-2058.93,0.0001726,2]
[369449006,1751579446762,-550.30518598,0.0001726,2]
[369449009,1751579446771,-460.0,0.0001726,2]
[369449010,1751579446780,-1215.24,0.0001726,2]
[369449012,1751579446789,-382.41497258,0.0001726,2]
[369449015,1751579446802,-77.58502742,0.0001726,2]
[369449017,1751579446812,-1849.45,0.0001726,2]
[369449019,1751579446821,-3041.43146041,0.0001726,2]
[369449031,1751579446921,-552.54853959,0.0001726,2]
[369449033,1751579446930,-388.61078957,0.0001726,2]
[369450328,1751579677247,157.737323,0.00013699,2]
[369450329,1751579733022,1332.84010928,0.00027397,120]
[369450330,1751579754115,1000.0,0.00027397,120]
[369450331,1751580306174,10083.7936116,0.000246,60]
[369450332,1751580306217,1767.67032603,0.000272,120]
[369450334,1751580532767,11039.07947584,0.00015039,2]
[369450335,1751580532790,13860.92052416,0.00015039,2]
[369450361,1751580637302,-829.57278275,0.00015467,2]
[369450384,1751580638368,-118.17840862,0.00015467,2]
[369450385,1751580638377,-300.0,0.00015566,2]
[369450386,1751580638387,-300.0,0.00015566,2]
[369450387,1751580638397,-300.0,0.00015566,2]
[369450388,1751580638407,-300.0,0.00015566,2]
[369450389,1751580638417,-1200.0,0.00015566,2]
[369450390,1751580638426,-500.0,0.00015566,2]
[369450391,1751580638435,-500.0,0.00015566,2]
[369450392,1751580638445,-418.59205698,0.00015566,2]
[369450393,1751580638454,-551.82468075,0.00015566,2]
[369450394,1751580638463,-500.0,0.00015566,2]
[369450395,1751580638473,-500.0,0.00015566,2]
[369450396,1751580638482,-316.23636937,0.00015566,2]
[369450398,1751580638492,-500.0,0.00015566,2]
[369450400,1751580638504,-500.0,0.00015566,2]
[369450401,1751580638518,-500.0,0.00015566,2]
[369450402,1751580638532,-500.0,0.00015566,2]
[369450403,1751580638546,-500.0,0.00015566,2]
[369450404,1751580638559,-500.0,0.00015566,2]
[369450405,1751580638570,-500.0,0.00015566,2]
[369450406,1751580638582,-500.0,0.00015566,2]
[369450407,1751580638596,-500.0,0.00015566,2]
[369450408,1751580638608,-500.0,0.00015566,2]
[369450409,1751580638620,-500.0,0.00015566,2]
[369450410,1751580638634,-500.0,0.00015566,2]
[369450411,1751580638648,-500.0,0.00015566,2]
[369450412,1751580638660,-500.0,0.00015566,2]
[369450413,1751580638673,-500.0,0.00015566,2]
[369450414,1751580638686,-500.0,0.00015566,2]
[369450415,1751580638700,-500.0,0.00015566,2]
[369450416,1751580638712,-500.0,0.00015566,2]
[369450417,1751580638724,-500.0,0.00015566,2]
[369450418,1751580638736,-500.0,0.00015566,2]
[369450419,1751580638748,-500.0,0.00015566,2]
[369450420,1751580638760,-500.0,0.00015566,2]
[369450421,1751580638772,-500.0,0.00015566,2]
[369450422,1751580638786,-500.0,0.00015566,2]
[369450423,1751580638798,-500.0,0.00015566,2]
[369450424,1751580638810,-500.0,0.00015566,2]
[369450425,1751580638822,-500.0,0.00015566,2]
[369450426,1751580638833,-500.0,0.00015566,2]
[369450427,1751580638845,-500.0,0.00015566,2]
[369450428,1751580638858,-500.0,0.00015566,2]
[369450429,1751580638869,-500.0,0.00015566,2]
[369450430,1751580638883,-500.0,0.00015566,2]
[369450431,1751580638896,-500.0,0.00015566,2]
[369450432,1751580638910,-500.0,0.00015566,2]
[369450433,1751580638922,-500.0,0.00015566,2]
[369450434,1751580638935,-500.0,0.00015566,2]
[369450435,1751580638949,-500.0,0.00015566,2]
[369450436,1751580638962,-500.0,0.00015566,2]
[369450437,1751580638975,-500.0,0.00015566,2]
[369450438,1751580638988,-500.0,0.00015566,2]
[369450439,1751580638999,-500.0,0.00015566,2]
[369450440,1751580639010,-500.0,0.00015566,2]
[369450441,1751580639020,-500.0,0.00015566,2]
[369450442,1751580639031,-500.0,0.00015566,2]
[369450443,1751580639043,-500.0,0.00015566,2]
[369450444,1751580639058,-500.0,0.00015566,2]
[369450445,1751580639070,-500.0,0.00015566,2]
[369450446,1751580639082,-500.0,0.00015566,2]
[369450447,1751580639093,-290.0,0.00015566,2]
[369450448,1751580639105,-600.0,0.00015566,2]
[369450449,1751580639116,-500.0,0.00015566,2]
[369450450,1751580639129,-500.0,0.00015566,2]
[369450451,1751580639142,-500.0,0.00015566,2]
[369450452,1751580639152,-500.0,0.00015566,2]
[369450453,1751580639163,-500.0,0.00015566,2]
[369450454,1751580639173,-500.0,0.00015566,2]
[369450455,1751580639184,-500.0,0.00015566,2]
[369450456,1751580639194,-500.0,0.00015566,2]
[369450457,1751580639206,-500.0,0.00015566,2]
[369450458,1751580639217,-500.0,0.00015566,2]
[369450459,1751580639228,-500.0,0.00015566,2]
[369450460,1751580639241,-500.0,0.00015566,2]
[369450461,1751580639252,-500.0,0.00015566,2]
[369450462,1751580639263,-500.0,0.00015566,2]
[369450463,1751580639275,-500.0,0.00015566,2]
[369450464,1751580639286,-500.0,0.00015566,2]
[369450465,1751580639298,-304.47654153,0.00015566,2]
[369450466,1751580639310,-500.0,0.00015566,2]
[369450467,1751580639321,-500.0,0.00015566,2]
[369450468,1751580639333,-500.0,0.00015566,2]
[369450469,1751580639343,-1200.0,0.00015568,2]
[369450470,1751580639355,-20000.00000001,0.00015576,2]
[369450471,1751580639367,-448.77558269,0.00015967,2]
[369450472,1751580639379,-216.0,0.00016428,3]
[369450473,1751580639391,-648.02,0.00016428,3]
[369450474,1751580639403,-460.0,0.00016438,2]
[369450475,1751580639416,-460.0,0.00016438,2]
[369450476,1751580639428,-460.0,0.00016438,2]
[369450477,1751580639440,-460.0,0.00016438,2]
[369450478,1751580639451,-552.70506603,0.00016438,2]
[369450479,1751580639462,-460.0,0.00016438,2]
[369450480,1751580639474,-460.0,0.00016438,2]
[369450481,1751580639485,-300.0,0.00016438,2]
[369450482,1751580639501,-440.0,0.00016438,2]
[369450483,1751580639512,-460.0,0.00016438,2]
[369450484,1751580639523,-590.10952647,0.00016438,2]
[369450485,1751580639536,-570.6445633,0.00016438,2]
[369450486,1751580639547,-460.0,0.00016438,2]
[369450487,1751580639559,-460.0,0.00016438,2]
[369450488,1751580639570,-460.0,0.00016438,2]
[369450489,1751580639581,-460.0,0.00016438,2]
[369450490,1751580639593,-460.0,0.00016438,2]
[369450491,1751580639605,-500.0,0.00016438,2]
[369450492,1751580639616,-460.0,0.00016438,2]
[369450493,1751580639628,-460.0,0.00016438,2]
[369450494,1751580639639,-460.0,0.00016438,2]
[369450495,1751580639651,-460.0,0.00016438,2]
[369450496,1751580639662,-460.0,0.00016438,2]
[369450497,1751580639674,-460.0,0.00016438,2]
[369450498,1751580639685,-459.0,0.00016438,2]
[369450499,1751580639696,-460.0,0.00016438,2]
[369450500,1751580639707,-293.68,0.00016438,2]
[369450501,1751580639719,-459.44050273,0.00016438,2]
[369450502,1751580639732,-460.0,0.00016438,2]
[369450503,1751580639744,-460.0,0.00016438,2]
[369450504,1751580639755,-460.0,0.00016438,2]
[369450505,1751580639767,-460.0,0.00016438,2]
[369450506,1751580639778,-460.0,0.00016438,2]
[369450507,1751580639789,-460.0,0.00016438,2]
[369450508,1751580639800,-392.19541064,0.00016438,2]
[369450509,1751580639811,-460.0,0.00016438,2]
[369450510,1751580639822,-281.89004281,0.00016438,2]
[369451070,1751580646540,-178.10995719,0.00016438,2]
[369451073,1751580646550,-460.0,0.00016438,2]
[369451075,1751580646560,-460.0,0.00016438,2]
[369451076,1751580646569,-1001.75,0.00016438,2]
[369451078,1751580646579,-1346.42,0.00016438,2]
[369451081,1751580646588,-477.42,0.00016438,2]
[369451083,1751580646598,-460.0,0.00016438,2]
[369451085,1751580646608,-562.93,0.00016438,2]
[369451087,1751580646617,-53.37004281,0.00016438,2]
[369451325,1751580737241,157.737323,0.00013699,2]
[369451341,1751581723881,497.25786258,0.00014951,2]
[369451372,1751581832491,-300.0,0.00015459,2]
[369451374,1751581832501,-300.0,0.00015459,2]
[369451376,1751581832511,-300.0,0.00015459,2]
[369451379,1751581832520,-1200.0,0.00015459,2]
[369451381,1751581832530,-300.0,0.00015459,2]
[369451382,1751581832540,-500.0,0.0001546,2]
[369451384,1751581832549,-500.0,0.0001546,2]
[369451387,1751581832559,-500.0,0.0001546,2]
[369451389,1751581832568,-500.0,0.0001546,2]
[369451391,1751581832577,-500.0,0.0001546,2]
[369451393,1751581832587,-500.0,0.0001546,2]
[369451395,1751581832597,-500.0,0.0001546,2]
[369451397,1751581832607,-500.0,0.0001546,2]
[369451399,1751581832616,-338.96160216,0.0001546,2]
[369451401,1751581832626,-500.0,0.0001546,2]
[369451403,1751581832635,-500.0,0.0001546,2]
[369451405,1751581832644,-500.0,0.0001546,2]
[369451407,1751581832653,-500.0,0.0001546,2]
[369451409,1751581832662,-500.0,0.0001546,2]
[369451411,1751581832671,-500.0,0.0001546,2]
[369451413,1751581832680,-500.0,0.0001546,2]
[369451415,1751581832689,-500.0,0.0001546,2]
[369451417,1751581832698,-500.0,0.0001546,2]
[369451419,1751581832707,-500.0,0.0001546,2]
[369451421,1751581832717,-500.0,0.0001546,2]
[369451423,1751581832726,-500.0,0.0001546,2]
[369451425,1751581832735,-500.0,0.0001546,2]
[369451427,1751581832744,-500.0,0.0001546,2]
[369451429,1751581832754,-500.0,0.0001546,2]
[369451431,1751581832764,-500.0,0.0001546,2]
[369451433,1751581832775,-301.57418527,0.0001546,2]
[369451441,1751581832843,-198.42581473,0.0001546,2]
[369451443,1751581832853,-500.0,0.0001546,2]
[369451445,1751581832862,-500.0,0.0001546,2]
[369451447,1751581832873,-500.0,0.0001546,2]
[369451449,1751581832883,-500.0,0.0001546,2]
[369451451,1751581832892,-500.0,0.0001546,2]
[369451453,1751581832901,-500.0,0.0001546,2]
[369451455,1751581832911,-500.0,0.0001546,2]
[369451457,1751581832921,-500.0,0.0001546,2]
[369451459,1751581832930,-500.0,0.0001546,2]
[369451461,1751581832939,-500.0,0.0001546,2]
[369451463,1751581832949,-500.0,0.0001546,2]
[369451465,1751581832958,-500.0,0.0001546,2]
[369451467,1751581832972,-500.0,0.0001546,2]